fUST/lending_fUST_20250909
["ID","MTS","AMOUNT","RATE_DAILY","PERIOD"]
[384436850,1757412644814,-1501.45,0.00013698,2]
[384436852,1757412644823,-511.99645313,0.00013698,2]
[384436854,1757412644832,-480.0,0.00013698,2]
[384436856,1757412644841,-883.02,0.00013698,2]
[384436857,1757412644851,-926.42,0.00013698,2]
[384436860,1757412644861,-480.0,0.00013698,2]
[384436861,1757412644872,-1052.61,0.00013698,2]
[384436863,1757412644882,-151.0,0.00013698,2]
[384436865,1757412644891,-151.0,0.00013698,2]
[384436867,1757412644900,-480.0,0.00013698,2]
[384436869,1757412644909,-480.0,0.00013698,2]
[384436871,1757412644919,-1265.39,0.00013698,2]
[384436873,1757412644928,-480.0,0.00013698,2]
[384436875,1757412644938,-480.0,0.00013698,2]
[384436877,1757412644949,-480.0,0.00013698,2]
[384436879,1757412644958,-480.0,0.00013698,2]
[384436881,1757412644968,-480.0,0.00013698,2]
[384436883,1757412644977,-480.0,0.00013698,2]
[384436885,1757412644987,-480.0,0.00013698,2]
[384436887,1757412644996,-480.0,0.00013698,2]
[384436889,1757412645006,-1575.02,0.00013698,2]
[384436891,1757412645015,-480.0,0.00013698,2]
[384436893,1757412645026,-480.0,0.00013698,2]
[384436895,1757412645035,-480.0,0.00013698,2]
[384436897,1757412645045,-480.0,0.00013698,2]
[384436899,1757412645055,-480.0,0.00013698,2]
[384436901,1757412645064,-480.0,0.00013698,2]
[384436917,1757412645205,-290.972736,0.00013698,2]
[384436919,1757412645214,-480.0,0.00013698,2]
[384436921,1757412645224,-203.26913678,0.00013698,2]
[384436923,1757412645234,-480.0,0.00013698,2]
[384436925,1757412645243,-480.0,0.00013698,2]
[384436927,1757412645252,-480.0,0.00013698,2]
[384436929,1757412645262,-480.0,0.00013698,2]
[384436931,1757412645271,-4279.39,0.00013698,2]
[384436933,1757412645280,-480.0,0.00013698,2]
[384436935,1757412645289,-490.68032206,0.00013698,2]
[384436937,1757412645298,-480.0,0.00013698,2]
[384436939,1757412645307,-480.0,0.00013698,2]
[384436941,1757412645316,-480.0,0.00013698,2]
[384436943,1757412645325,-480.0,0.00013698,2]
[384436945,1757412645335,-151.0,0.00013698,2]
[384436947,1757412645344,-151.0,0.00013698,2]
[384436949,1757412645354,-480.0,0.00013698,2]
[384436951,1757412645363,-480.0,0.00013698,2]
[384436952,1757412645373,-480.0,0.00013698,2]
[384436954,1757412645383,-480.0,0.00013698,2]
[384436956,1757412645392,-480.0,0.00013698,2]
[384436958,1757412645401,-480.0,0.00013698,2]
[384436960,1757412645410,-422.73839063,0.00013698,2]
[384436962,1757412645419,-480.0,0.00013698,2]
[384436964,1757412645429,-480.0,0.00013698,2]
[384436966,1757412645438,-480.0,0.00013698,2]
[384436968,1757412645448,-480.0,0.00013698,2]
[384436970,1757412645458,-480.0,0.00013698,2]
[384436972,1757412645467,-2434.13,0.00013698,2]
[384436974,1757412645476,-4544.18,0.00013698,2]
[384436976,1757412645488,-480.0,0.00013698,2]
[384436978,1757412645497,-480.0,0.00013698,2]
[384436980,1757412645507,-480.0,0.00013698,2]
[384436983,1757412645516,-935.72,0.00013698,2]
[384436985,1757412645527,-491.34395462,0.00013698,2]
[384436987,1757412645536,-480.0,0.00013698,2]
[384436989,1757412645546,-852.43,0.00013698,2]
[384436991,1757412645556,-483.61922818,0.00013698,2]
[384436993,1757412645565,-480.0,0.00013698,2]
[384436995,1757412645574,-480.0,0.00013698,2]
[384436997,1757412645584,-480.0,0.00013698,2]
[384436999,1757412645593,-480.0,0.00013698,2]
[384437001,1757412645603,-480.0,0.00013698,2]
[384437003,1757412645612,-480.0,0.00013698,2]
[384437004,1757412645622,-151.0,0.00013698,2]
[384437006,1757412645631,-151.0,0.00013698,2]
[384437009,1757412645641,-151.0,0.00013698,2]
[384437011,1757412645650,-222.066546,0.00013698,2]
[384437013,1757412645660,-480.0,0.00013698,2]
[384437015,1757412645669,-480.0,0.00013698,2]
[384437017,1757412645678,-1880.95,0.00013698,2]
[384437019,1757412645687,-480.0,0.00013698,2]
[384437020,1757412645697,-870.92,0.00013698,2]
[384437021,1757412645706,-883.99,0.00013698,2]
[384437022,1757412645715,-533.85,0.00013698,2]
[384437023,1757412645724,-480.0,0.00013698,2]
[384437024,1757412645734,-480.0,0.00013698,2]
[384437025,1757412645743,-480.0,0.00013698,2]
[384437026,1757412645753,-337.07788376,0.00013698,2]
[384437027,1757412645763,-494.39,0.00013698,2]
[384437028,1757412645772,-480.0,0.00013698,2]
[384437029,1757412645781,-2495.36,0.00013698,2]
[384437030,1757412645790,-480.0,0.00013698,2]
[384437031,1757412645799,-480.0,0.00013698,2]
[384437032,1757412645808,-480.0,0.00013698,2]
[384437033,1757412645817,-480.0,0.00013698,2]
[384437034,1757412645826,-151.0,0.00013698,2]
[384437035,1757412645836,-154.088002,0.00013698,2]
[384437036,1757412645845,-480.0,0.00013698,2]
[384437037,1757412645854,-480.0,0.00013698,2]
[384437038,1757412645864,-480.0,0.00013698,2]
[384437039,1757412645873,-151.0,0.00013698,2]
[384437040,1757412645883,-151.0,0.00013698,2]
[384437041,1757412645893,-151.0,0.00013698,2]
[384437042,1757412645903,-151.0,0.00013698,2]
[384437044,1757412645913,-151.0,0.00013698,2]
[384437046,1757412645924,-480.0,0.00013698,2]
[384437048,1757412645933,-249.286569,0.00013698,2]
[384437050,1757412645942,-492.33394045,0.00013698,2]
[384437052,1757412645952,-1963.29,0.00013698,2]
[384437053,1757412645961,-480.0,0.00013698,2]
[384437054,1757412645970,-480.0,0.00013698,2]
[384437055,1757412645979,-480.0,0.00013698,2]
[384437056,1757412645989,-480.0,0.00013698,2]
[384437057,1757412645997,-480.0,0.00013698,2]
[384437059,1757412646007,-480.0,0.00013698,2]
[384437061,1757412646016,-480.0,0.00013698,2]
[384437063,1757412646026,-485.26,0.00013698,2]
[384437065,1757412646035,-500.0,0.00013698,2]
[384437067,1757412646044,-1144.325388,0.00013699,2]
[384437069,1757412646053,-1705.177505,0.00013699,2]
[384437071,1757412646062,-500.0,0.00013699,2]
[384437073,1757412646072,-500.0,0.00013699,2]
[384437075,1757412646081,-500.0,0.00013699,2]
[384437077,1757412646091,-500.0,0.00013699,2]
[384437079,1757412646100,-500.0,0.00013699,2]
[384437081,1757412646109,-500.0,0.00013699,2]
[384437082,1757412646118,-500.0,0.00013699,2]
[384437083,1757412646128,-263.40937721,0.00013699,2]
[384437084,1757412646137,-500.0,0.00013699,2]
[384437085,1757412646147,-363.39382827,0.00013699,2]
[384437086,1757412646157,-168.0,0.00013723,2]
[384437087,1757412646167,-168.0,0.00013763,2]
[384437088,1757412646176,-168.0,0.00013834,2]
[384437089,1757412646186,-300.0,0.00013864,2]
[384437090,1757412646195,-300.0,0.00013864,2]
[384437091,1757412646205,-300.0,0.00013864,2]
[384437092,1757412646214,-300.0,0.00013864,2]
[384437093,1757412646224,-300.0,0.00013864,2]
[384437094,1757412646234,-300.0,0.00013864,2]
[384437095,1757412646243,-300.0,0.00013864,2]
[384437096,1757412646253,-300.0,0.00013864,2]
[384437097,1757412646263,-300.0,0.00013864,2]
[384437098,1757412646272,-300.0,0.00013864,2]
[384437099,1757412646281,-300.0,0.00013864,2]
[384437100,1757412646291,-300.0,0.00013864,2]
[384437101,1757412646301,-300.0,0.00013864,2]
[384437102,1757412646310,-300.0,0.00013864,2]
[384437103,1757412646319,-300.0,0.00013864,2]
[384437104,1757412646330,-151.0,0.00013864,2]
[384437105,1757412646339,-151.0,0.00013864,2]
[384437106,1757412646348,-151.0,0.00013864,2]
[384437107,1757412646358,-151.0,0.00013864,2]
[384437108,1757412646367,-188.3411242,0.000139,2]
[384437109,1757412646377,-448.25937866,0.000139,2]
[384437110,1757412646386,-188.3411242,0.000139,2]
[384437111,1757412646395,-188.3411242,0.000139,2]
[384437112,1757412646405,-406.299122,0.000139,2]
[384437113,1757412646414,-406.299122,0.000139,2]
[384437114,1757412646423,-406.299122,0.000139,2]
[384437115,1757412646432,-406.299122,0.000139,2]
[384437116,1757412646441,-151.0,0.000139,2]
[384437118,1757412646451,-157.175077,0.000139,2]
[384437120,1757412646460,-151.0,0.000139,2]
[384437122,1757412646469,-151.0,0.000139,2]
[384437124,1757412646479,-157.221293,0.000139,2]
[384437126,1757412646492,-151.0,0.000139,2]
[384437128,1757412646502,-151.0,0.000139,2]
[384437129,1757412646511,-188.3411242,0.000139,2]
[384437130,1757412646519,-188.3411242,0.000139,2]
[384437131,1757412646530,-188.3411242,0.000139,2]
[384437132,1757412646539,-188.3411242,0.000139,2]
[384437133,1757412646548,-151.0,0.000139,2]
[384437134,1757412646557,-151.0,0.000139,2]
[384437135,1757412646568,-221.153683,0.000139,2]
[384437136,1757412646577,-188.3411242,0.000139,2]
[384437137,1757412646586,-398.11170187,0.00013924,2]
[384437138,1757412646595,-168.0,0.00013951,2]
[384437139,1757412646605,-8090.1409347,0.00013969,2]
[384437140,1757412646615,-600.0,0.00013971,2]
[384437141,1757412646624,-460.0,0.00013972,2]
[384437142,1757412646633,-500.0,0.00013972,2]
[384437143,1757412646643,-480.0,0.00013972,2]
[384437144,1757412646652,-480.0,0.00013972,2]
[384437145,1757412646661,-480.0,0.00013972,2]
[384437146,1757412646670,-485.72041524,0.00013972,2]
[384437147,1757412646680,-480.0,0.00013972,2]
[384437148,1757412646690,-156.644039,0.00013972,2]
[384437149,1757412646700,-480.0,0.00013972,2]
[384437150,1757412646710,-480.0,0.00013972,2]
[384437151,1757412646719,-480.0,0.00013972,2]
[384437152,1757412646728,-480.0,0.00013972,2]
[384437153,1757412646737,-480.0,0.00013972,2]
[384437154,1757412646747,-456.48342168,0.00013972,2]
[384437155,1757412646755,-480.0,0.00013972,2]
[384437156,1757412646765,-480.0,0.00013972,2]
[384437157,1757412646774,-480.0,0.00013972,2]
[384437158,1757412646783,-480.0,0.00013972,2]
[384437159,1757412646792,-482.5942701,0.00013972,2]
[384437160,1757412646802,-622.34,0.00013972,2]
[384437161,1757412646812,-480.0,0.00013972,2]
[384437162,1757412646821,-480.0,0.00013972,2]
[384437163,1757412646831,-480.0,0.00013972,2]
[384437164,1757412646840,-480.0,0.00013972,2]
[384437165,1757412646849,-522.66,0.00013972,2]
[384437166,1757412646859,-480.0,0.00013972,2]
[384437167,1757412646869,-480.0,0.00013972,2]
[384437168,1757412646878,-480.0,0.00013972,2]
[384437169,1757412646888,-480.0,0.00013972,2]
[384437170,1757412646898,-480.0,0.00013972,2]
[384437171,1757412646907,-480.0,0.00013972,2]
[384437172,1757412646918,-480.0,0.00013972,2]
[384437173,1757412646930,-480.0,0.00013972,2]
[384437174,1757412646939,-480.0,0.00013972,2]
[384437175,1757412646955,-642.54,0.00013972,2]
[384437176,1757412646964,-480.0,0.00013972,2]
[384437177,1757412646974,-157.0,0.00013972,2]
[384437178,1757412646985,-157.0,0.00013972,2]
[384437179,1757412646994,-480.0,0.00013972,2]
[384437180,1757412647007,-157.0,0.00013972,2]
[384437181,1757412647016,-677.76,0.00013972,2]
[384437182,1757412647027,-151.0,0.00013972,2]
[384437183,1757412647037,-151.0,0.00013972,2]
[384437184,1757412647046,-151.0,0.00013972,2]
[384437185,1757412647057,-151.0,0.00013972,2]
[384437186,1757412647067,-151.0,0.00013972,2]
[384437187,1757412647076,-151.0,0.00013972,2]
[384437188,1757412647085,-151.0,0.00013972,2]
[384437189,1757412647095,-355.46355739,0.00013972,2]
[384437190,1757412647150,-124.53644261,0.00013972,2]
[384437191,1757412647159,-151.0,0.00013972,2]
[384437192,1757412647169,-151.0,0.00013972,2]
[384437193,1757412647179,-151.0,0.00013972,2]
[384437194,1757412647188,-151.0,0.00013972,2]
[384437195,1757412647198,-151.0,0.00013972,2]
[384437196,1757412647208,-550.1,0.00013972,2]
[384437197,1757412647218,-480.0,0.00013972,2]
[384437198,1757412647227,-480.0,0.00013972,2]
[384437199,1757412647237,-480.0,0.00013972,2]
[384437200,1757412647246,-480.0,0.00013972,2]
[384437201,1757412647256,-480.0,0.00013972,2]
[384437202,1757412647271,-480.0,0.00013972,2]
[384437203,1757412647281,-480.0,0.00013972,2]
[384437204,1757412647291,-921.56,0.00013972,2]
[384437205,1757412647301,-480.0,0.00013972,2]
[384437206,1757412647310,-480.0,0.00013972,2]
[384437207,1757412647319,-638.93,0.00013972,2]
[384437208,1757412647329,-480.0,0.00013972,2]
[384437209,1757412647340,-406.299122,0.00013972,2]
[384437210,1757412647350,-406.299122,0.00013972,2]
[384437211,1757412647359,-480.0,0.00013972,2]
[384437212,1757412647368,-590.0816642,0.00013972,2]
[384437213,1757412647378,-406.299122,0.00013972,2]
[384437214,1757412647387,-406.299122,0.00013972,2]
[384437215,1757412647396,-406.299122,0.00013972,2]
[384437216,1757412647406,-406.299122,0.00013972,2]
[384437217,1757412647415,-480.0,0.00013972,2]
[384437218,1757412647424,-406.299122,0.00013972,2]
[384437219,1757412647434,-406.29913,0.00013972,2]
[384437220,1757412647443,-480.0,0.00013972,2]
[384437221,1757412647453,-480.0,0.00013972,2]
[384437222,1757412647463,-88.4993991,0.00013972,2]
[384437224,1757412649738,-609.2,0.00013698,2]
[384437225,1757412649747,-391.5006009,0.00013972,2]
[384437226,1757412649757,-153.271741,0.00013972,2]
[384437227,1757412649767,-151.0,0.00013972,2]
[384437228,1757412649776,-162.172256,0.00013972,2]
[384437229,1757412649785,-67.01992212,0.00013972,2]
[384437230,1757412649797,-412.98007788,0.00013972,2]
[384437231,1757412649806,-151.0,0.00013972,2]
[384437232,1757412649816,-480.0,0.00013972,2]
[384437233,1757412649826,-151.0,0.00013972,2]
[384437234,1757412649835,-480.0,0.00013972,2]
[384437235,1757412649844,-480.0,0.00013972,2]
[384437236,1757412649853,-559.6,0.00013972,2]
[384437237,1757412649863,-518.55,0.00013972,2]
[384437238,1757412649872,-480.0,0.00013972,2]
[384437239,1757412649882,-480.0,0.00013972,2]
[384437241,1757412649891,-480.0,0.00013972,2]
[384437242,1757412649901,-228.472145,0.00013972,2]
[384437243,1757412649910,-222.868381,0.00013972,2]
[384437244,1757412649919,-538.65,0.00013972,2]
[384437245,1757412649929,-480.0,0.00013972,2]
[384437246,1757412649939,-480.0,0.00013972,2]
[384437247,1757412649948,-504.8,0.00013972,2]
[384437248,1757412649957,-331.81266831,0.00013972,2]
[384437249,1757412649966,-151.0,0.00013972,2]
[384437250,1757412649975,-151.0,0.00013972,2]
[384437251,1757412649985,-425.2403921,0.00013972,2]
[384437252,1757412649994,-480.0,0.00013972,2]
[384437253,1757412650004,-480.0,0.00013972,2]
[384437254,1757412650013,-480.0,0.00013972,2]
[384437255,1757412650022,-480.0,0.00013972,2]
[384437256,1757412650032,-480.0,0.00013972,2]
[384437257,1757412650041,-480.0,0.00013972,2]
[384437258,1757412650051,-480.0,0.00013972,2]
[384437259,1757412650060,-480.0,0.00013972,2]
[384437260,1757412650069,-480.0,0.00013972,2]
[384437261,1757412650079,-157.0,0.00013972,2]
[384437262,1757412650088,-900.17,0.00013972,2]
[384437263,1757412650097,-305.86419186,0.00013972,2]
[384437264,1757412650106,-272.46843252,0.00013972,2]
[384437265,1757412650262,-207.53156748,0.00013972,2]
[384437266,1757412650275,-157.28308858,0.00013972,2]
[384437267,1757412650285,-157.0,0.00013972,2]
[384437268,1757412650293,-480.0,0.00013972,2]
[384437269,1757412650303,-157.0,0.00013972,2]
[384437270,1757412650312,-303.87547381,0.00013972,2]
[384437271,1757412650321,-500.0,0.00013972,2]
[384437272,1757412650330,-157.0,0.00013972,2]
[384437273,1757412650339,-157.0,0.00013972,2]
[384437274,1757412650349,-480.0,0.00013972,2]
[384437275,1757412650358,-480.0,0.00013972,2]
[384437276,1757412650367,-480.0,0.00013972,2]
[384437277,1757412650377,-480.0,0.00013972,2]
[384437278,1757412650387,-480.0,0.00013972,2]
[384437279,1757412650396,-480.0,0.00013972,2]
[384437280,1757412650405,-480.0,0.00013972,2]
[384437281,1757412650415,-480.0,0.00013972,2]
[384437282,1757412650424,-480.0,0.00013972,2]
[384437283,1757412650433,-480.0,0.00013972,2]
[384437284,1757412650442,-480.0,0.00013972,2]
[384437285,1757412650451,-480.0,0.00013972,2]
[384437286,1757412650461,-480.0,0.00013972,2]
[384437287,1757412650470,-480.0,0.00013972,2]
[384437288,1757412650480,-480.0,0.00013972,2]
[384437289,1757412650493,-480.0,0.00013972,2]
[384437290,1757412650502,-480.0,0.00013972,2]
[384437291,1757412650511,-480.0,0.00013972,2]
[384437292,1757412650520,-480.0,0.00013972,2]
[384437293,1757412650530,-480.0,0.00013972,2]
[384437294,1757412650540,-480.0,0.00013972,2]
[384437295,1757412650549,-507.68,0.00013972,2]
[384437296,1757412650559,-541.06,0.00013972,2]
[384437297,1757412650569,-480.0,0.00013972,2]
[384437298,1757412650578,-480.0,0.00013972,2]
[384437299,1757412650587,-480.0,0.00013972,2]
[384437300,1757412650597,-480.0,0.00013972,2]
[384437301,1757412650607,-480.0,0.00013972,2]
[384437302,1757412650617,-480.0,0.00013972,2]
[384437303,1757412650627,-480.0,0.00013972,2]
[384437304,1757412650636,-480.0,0.00013972,2]
[384437305,1757412650646,-151.0,0.00013972,2]
[384437306,1757412650655,-480.0,0.00013972,2]
[384437307,1757412650664,-179.157734,0.00013972,2]
[384437308,1757412650673,-480.0,0.00013972,2]
[384437309,1757412650683,-480.0,0.00013972,2]
[384437310,1757412650692,-480.0,0.00013972,2]
[384437311,1757412650701,-480.0,0.00013972,2]
[384437312,1757412650711,-604.34,0.00013972,2]
[384437313,1757412650720,-480.0,0.00013972,2]
[384437314,1757412650729,-480.0,0.00013972,2]
[384437315,1757412650739,-5203.06,0.00013972,2]
[384437316,1757412650748,-579.1,0.00013972,2]
[384437317,1757412650757,-480.0,0.00013972,2]
[384437318,1757412650766,-480.0,0.00013972,2]
[384437319,1757412650775,-480.0,0.00013972,2]
[384437320,1757412650784,-469.34468138,0.00013972,2]
[384437321,1757412650794,-725.74,0.00013972,2]
[384437322,1757412650803,-480.0,0.00013972,2]
[384437323,1757412650812,-569.58,0.00013972,2]
[384437324,1757412650821,-152.078291,0.00013972,2]
[384437325,1757412650831,-480.0,0.00013972,2]
[384437326,1757412650839,-1609.09,0.00013972,2]
[384437327,1757412650849,-480.0,0.00013972,2]
[384437328,1757412650858,-151.0,0.00013972,2]
[384437329,1757412650867,-151.0,0.00013972,2]
[384437330,1757412650877,-480.0,0.00013972,2]
[384437331,1757412650887,-480.0,0.00013972,2]
[384437332,1757412650895,-480.0,0.00013972,2]
[384437333,1757412650905,-919.13,0.00013972,2]
[384437334,1757412650914,-2362.04,0.00013972,2]
[384437335,1757412650923,-480.0,0.00013972,2]
[384437336,1757412650932,-580.43,0.00013972,2]
[384437337,1757412650941,-725.6,0.00013972,2]
[384437338,1757412650950,-716.84,0.00013972,2]
[384437339,1757412650959,-167.335852,0.00013972,2]
[384437340,1757412650968,-1117.11,0.00013972,2]
[384437341,1757412650977,-480.0,0.00013972,2]
[384437342,1757412650987,-480.0,0.00013972,2]
[384437343,1757412650999,-819.72,0.00013972,2]
[384437344,1757412651008,-480.0,0.00013972,2]
[384437345,1757412651017,-157.0,0.00013972,2]
[384437346,1757412651026,-500.0,0.00013972,2]
[384437347,1757412651035,-842.53,0.00013972,2]
[384437348,1757412651044,-247.52746952,0.00013972,2]
[384437349,1757412651053,-212.18,0.00013972,2]
[384437350,1757412651062,-157.0,0.00013972,2]
[384437351,1757412651071,-157.0,0.00013972,2]
[384437352,1757412651081,-315.46805423,0.00013972,2]
[384437353,1757412651095,-210.01332688,0.00013972,2]
[384437354,1757412651104,-1362.46,0.00013972,2]
[384437355,1757412651114,-480.0,0.00013972,2]
[384437356,1757412651228,-480.0,0.00013972,2]
[384437357,1757412651254,-157.0,0.00013972,2]
[384437358,1757412651263,-507.0,0.00013972,2]
[384437359,1757412651273,-480.0,0.00013972,2]
[384437360,1757412651282,-15.0039146,0.00013972,2]
[384437361,1757412651293,-464.9960854,0.00013972,2]
[384437362,1757412651302,-1064.46213717,0.00013972,2]
[384437363,1757412652267,-1000.0,0.00013972,2]
[384437365,1757412678784,1000.0,0.00018595,20]
[384437368,1757412837093,1000.0,0.00012697,2]
[384437371,1757412869380,168.0,0.00013158,2]
[384437372,1757412894272,168.0,0.00013158,2]
[384437378,1757412917936,162.36038754,0.00013158,2]
[384437381,1757413036435,-194.79286192,0.00013286,2]
[384437382,1757413045220,168.0,0.00013189,2]
[384437383,1757413070719,168.0,0.00013189,2]
[384437384,1757413095453,168.0,0.00013189,2]
[384437385,1757413098066,8942.689,0.00028749,60]
[384437386,1757413119010,168.0,0.00013189,2]
[384437387,1757413143485,168.0,0.00013189,2]
[384437388,1757413167915,168.0,0.00013189,2]
[384437389,1757413191146,168.0,0.00013189,2]
[384437390,1757413215170,168.0,0.00013189,2]
[384437391,1757413240785,168.0,0.00013189,2]
[384437392,1757413264311,168.0,0.00013189,2]
[384437393,1757413287165,168.0,0.00013189,2]
[384437394,1757413312496,168.0,0.00013189,2]
[384437395,1757413337030,168.0,0.00013189,2]
[384437396,1757413360295,168.0,0.00013189,2]
[384437401,1757413384563,168.0,0.00013189,2]
[384437405,1757413407956,168.0,0.00013189,2]
[384437408,1757413432779,168.0,0.00013189,2]
[384437409,1757413443288,1238.9524201,0.00012691,2]
[384437410,1757413457902,168.0,0.00013189,2]
[384437411,1757413482808,168.0,0.00013189,2]
[384437413,1757413492113,168.0,0.00013189,2]
[384437416,1757413509479,168.0,0.00013189,2]
[384437417,1757413532786,168.0,0.00013189,2]
[384437418,1757413556691,168.0,0.00013189,2]
[384437419,1757413563344,192.62821732,0.00013026,2]
[384437421,1757413580490,168.0,0.00013189,2]
[384437423,1757413606480,168.0,0.00013189,2]
[384437424,1757413630453,168.0,0.00013189,2]
[384437425,1757413653732,168.0,0.00013189,2]
[384437426,1757413677455,168.0,0.00013189,2]
[384437427,1757413701274,168.0,0.00013189,2]
[384437429,1757413725234,168.0,0.00013189,2]
[384437430,1757413749053,168.0,0.00013189,2]
[384437431,1757413772963,168.0,0.00013189,2]
[384437432,1757413796542,168.0,0.00013189,2]
[384437433,1757413820674,168.0,0.00013189,2]
[384437478,1757413832337,-168.0,0.00013323,2]
[384437479,1757413832346,-168.0,0.00013571,2]
[384437481,1757413832356,-511.57981833,0.00013598,2]
[384437483,1757413832366,-168.0,0.00013666,2]
[384437484,1757413832375,-9.30311025,0.00013688,2]
[384437485,1757413832448,-290.69688975,0.00013688,2]
[384437486,1757413832458,-417.15472785,0.00013689,2]
[384437487,1757413832469,-846.80158213,0.00013689,2]
[384437488,1757413832478,-203.28455737,0.00013689,2]
[384437489,1757413832487,-160.0,0.00013689,2]
[384437490,1757413832496,-217.65034598,0.00013689,2]
[384437491,1757413832505,-233.05759179,0.00013689,2]
[384437492,1757413832515,-634.0,0.00013696,2]
[384437493,1757413832524,-2154.0,0.00013696,2]
[384437494,1757413832534,-299.81567422,0.00013697,2]
[384437495,1757413832544,-500.0,0.00013697,2]
[384437496,1757413832553,-500.0,0.00013697,2]
[384437497,1757413832563,-500.0,0.00013697,2]
[384437498,1757413832572,-164.95172966,0.00013697,2]
[384437499,1757413832581,-8000.7876059,0.00013697,2]
[384437500,1757413832590,-265.756,0.00013697,2]
[384437501,1757413832600,-500.0,0.00013697,2]
[384437502,1757413832609,-429.73220787,0.00013697,2]
[384437503,1757413832619,-500.0,0.00013697,2]
[384437504,1757413832628,-480.0,0.00013698,2]
[384437505,1757413832638,-480.0,0.00013698,2]
[384437506,1757413832647,-480.0,0.00013698,2]
[384437507,1757413832657,-480.0,0.00013698,2]
[384437508,1757413832668,-480.0,0.00013698,2]
[384437509,1757413832678,-480.0,0.00013698,2]
[384437510,1757413832687,-480.0,0.00013698,2]
[384437511,1757413832697,-480.0,0.00013698,2]
[384437512,1757413832705,-480.0,0.00013698,2]
[384437513,1757413832715,-844.77,0.00013698,2]
[384437514,1757413832724,-513.65966398,0.00013698,2]
[384437515,1757413832734,-480.0,0.00013698,2]
[384437516,1757413832743,-480.0,0.00013698,2]
[384437517,1757413832752,-480.0,0.00013698,2]
[384437518,1757413832762,-480.0,0.00013698,2]
[384437519,1757413832771,-596.77723403,0.00013698,2]
[384437520,1757413832780,-480.0,0.00013698,2]
[384437521,1757413832790,-480.0,0.00013698,2]
[384437522,1757413832799,-198.55491557,0.00013698,2]
[384437523,1757413832810,-431.04490122,0.00013698,2]
[384437524,1757413832819,-480.0,0.00013698,2]
[384437525,1757413832829,-480.0,0.00013698,2]
[384437526,1757413832839,-480.0,0.00013698,2]
[384437527,1757413832849,-480.0,0.00013698,2]
[384437528,1757413832858,-480.0,0.00013698,2]
[384437529,1757413832867,-497.41030028,0.00013698,2]
[384437530,1757413832877,-480.0,0.00013698,2]
[384437531,1757413832886,-480.0,0.00013698,2]
[384437532,1757413832897,-480.0,0.00013698,2]
[384437533,1757413832908,-491.16665435,0.00013698,2]
[384437534,1757413832920,-480.0,0.00013698,2]
[384437535,1757413832929,-480.0,0.00013698,2]
[384437536,1757413832939,-480.0,0.00013698,2]
[384437537,1757413832950,-480.0,0.00013698,2]
[384437538,1757413832960,-480.0,0.00013698,2]